bitfinex/quotes_ETHUSD_20241122
["timestamp","ask_amount","ask_price","bid_price","bid_amount"]
[1732286933679,3.03302,3297.1,3296.6,0.7554]
[1732286933978,3.03361,3296.4,3295.5,0.7683]
[1732286934171,3.03355,3296.5,3295.5,0.7683]
[1732286934352,3.303268,3297.4,3295.5,0.7683]
[1732286934884,3.03249,3297.7,3295.9,0.7856]
[1732286935203,3.03248,3297.7,3296.1,0.7856]
[1732286935373,3.03248,3297.7,3296.3,0.7856]
[1732286935569,3.03224,3297.9,3296.6,0.55]
[1732286935805,3.335474,3297.9,3296.6,0.55]
[1732286936096,0.303224,3297.9,3296.2,0.03032823]
[1732286936293,3.03279,3297.3,3296.2,0.03032823]
[1732286936458,3.03259,3297.6,3296.2,0.03032823]
[1732286936657,3.03266,3297.5,3296.2,0.03032823]
[1732286936905,0.606525,3297.5,3295.3,3.9174454]
[1732286937062,3.0,3297.2,3294.8,0.03033538]
[1732286937260,3.0334,3296.7,3294.8,0.03033538]
[1732286937497,3.03319,3296.9,3294.8,0.03033538]
[1732286937704,3.336509,3296.9,3294.9,0.39477808]
[1732286937860,0.303319,3296.9,3295.0,0.03033702]
[1732286938061,3.03255,3297.6,3295.0,0.03033702]
[1732286938299,3.0326,3297.5,3295.0,0.03033702]
[1732286938476,3.0,3297.7,3295.0,0.03033702]
[1732286938477,3.03318,3296.9,3295.0,0.03033702]
[1732286938808,3.03318,3296.9,3295.3,0.798]
[1732286939094,3.03327,3296.8,3295.4,0.58033622]
[1732286939297,3.03318,3296.9,3295.6,0.55]
[1732286939503,3.03318,3296.9,3295.9,0.8185]
[1732286940017,0.606614,3296.9,3295.9,0.8185]
[1732286940175,3.03278,3297.4,3295.9,0.8185]
[1732286940379,3.0333,3296.8,3295.9,0.8185]
[1732286940760,0.30333,3296.8,3295.9,0.8185]
[1732286940969,3.03306,3297.0,3295.9,0.8185]
[1732286941281,3.03348,3296.6,3295.9,0.8185]
[1732286941477,3.03339,3296.7,3295.9,0.8185]
[1732286941807,3.03358,3296.5,3295.9,0.8185]
[1732286942174,0.303339,3296.6,3295.9,0.8185]
[1732286942492,3.03278,3297.3,3296.0,0.0303387]
[1732286942695,0.3,3298.6,3296.6,0.7992]
[1732286942896,0.3,3298.6,3296.5,0.55]
[1732286942897,3.03242,3297.7,3296.8,0.7992]
[1732286943074,3.03298,3297.1,3296.8,0.7992]
[1732286943390,3.03208,3298.1,3296.9,0.55]
[1732286943578,0.303208,3298.1,3297.1,0.55]
[1732286943904,0.31582392,3299.5,3297.8,0.7992]
[1732286944105,3.02995,3300.4,3298.6,0.7992]
[1732286944310,3.80057,3301.0,3298.6,0.7992]
[1732286944311,3.03021,3300.1,3298.7,0.55]
[1732286944600,3.02956,3300.9,3299.0,1.3492]
[1732286944817,3.82813,3301.5,3299.6,0.3027]
[1732286944999,0.7992,3301.5,3300.1,0.3027]
[1732286945169,3.02857,3301.9,3300.4,0.55]
[1732286945505,3.02958,3300.8,3300.3,0.2075]
[1732286945788,3.02993,3300.4,3300.3,0.2075]
[1732286945948,6.9470954,3300.8,3298.4,3.03030678]
[1732286946231,8.75,3301.7,3298.4,3.03030678]
[1732286946232,3.9174454,3300.3,3298.5,0.55]
[1732286946437,3.9174454,3300.3,3297.4,0.03031171]
[1732286946595,0.39174454,3300.2,3297.5,0.39274454]
[1732286946798,3.39174454,3300.2,3297.6,0.03031483]
[1732286947113,3.03134,3298.9,3297.6,0.03031483]
[1732286947324,0.303134,3298.8,3296.8,3.9174454]
[1732286947630,0.303134,3298.8,3296.2,0.01]
[1732286947631,3.0,3298.8,3296.2,3.9174454]
[1732286947834,3.03189,3298.3,3296.3,0.42206946]
[1732286948138,0.3,3298.7,3296.7,3.9174454]
[1732286948306,3.0,3299.1,3296.8,0.03031969]
[1732286948630,0.99485354,3299.0,3296.8,0.03031969]
[1732286948806,3.0313,3299.0,3297.1,3.9174454]
[1732286949032,3.0,3299.1,3297.3,0.8067]
[1732286949328,0.01,3300.6,3297.2,3.03031695]
[1732286949329,0.603103,3299.0,3297.4,0.83701603]
[1732286949493,3.83,3299.5,3297.4,0.83701603]
[1732286949695,3.0,3299.3,3297.5,0.55]
[1732286949938,0.3,3299.2,3297.5,0.55]
[1732286950245,3.03166,3298.6,3297.5,0.55]
[1732286950535,3.03161,3298.6,3297.6,0.03032006]
[1732286950749,3.03123,3299.0,3297.5,0.55]
[1732286950897,3.03176,3298.5,3297.5,0.55]
[1732286951231,3.83,3299.5,3297.5,0.55]
[1732286951437,0.386076,3299.4,3297.6,0.03031953]
[1732286951638,3.03152,3298.7,3297.6,0.03031953]
[1732286951932,3.0315,3298.7,3297.6,0.03031953]
[1732286952134,3.33465,3298.7,3297.5,0.55]
[1732286952308,3.03186,3298.4,3297.5,0.55]
[1732286952631,3.0316,3298.6,3297.5,0.55]
[1732286952832,3.03193,3298.3,3297.4,0.8067]
[1732286952999,0.303193,3298.2,3297.4,0.8067]
[1732286953200,0.303193,3298.2,3295.6,0.02]
[1732286953201,3.03306,3297.0,3296.3,0.8091]
[1732286953422,3.03361,3296.4,3296.3,0.8091]
[1732286953894,3.03361,3296.4,3294.8,0.758]
[1732286953895,3.0337,3296.4,3294.8,0.758]
[1732286954103,3.03323,3296.9,3295.0,0.7907]
[1732286954292,3.03332,3296.8,3295.1,3.94778619]
[1732286954529,3.03269,3297.4,3295.2,0.7907]
[1732286954708,3.03352,3296.5,3295.3,0.7939353]
[1732286955228,3.03329,3296.8,3295.3,0.7939353]
[1732286955446,3.03287,3297.2,3295.3,0.7939353]
[1732286955729,3.03359,3296.5,3295.4,0.7758]
[1732286955943,0.3336136,3297.2,3295.4,0.7758]
[1732286955944,3.03296,3297.1,3295.4,0.7758]
[1732286956104,3.0339,3296.1,3295.4,0.7758]
[1732286956306,3.03379,3296.3,3295.4,0.7758]
[1732286956531,3.0,3296.9,3295.4,0.7758]
[1732286956748,3.03331,3296.8,3295.5,0.03034083]
[1732286956931,3.636396,3297.0,3295.5,0.03034083]
[1732286957249,3.03325,3296.8,3295.5,0.55]
[1732286957457,0.3636396,3296.9,3295.5,0.55]
[1732286957458,3.03343,3296.6,3295.5,0.55]
[1732286957605,3.03296,3297.1,3295.4,0.7758]
[1732286957809,3.03363,3296.4,3295.4,0.7758]
[1732286958035,3.03391,3296.1,3295.4,0.7758]
[1732286958543,3.03369,3296.4,3295.4,0.7758]
[1732286958544,3.03362,3296.4,3295.4,0.7758]
[1732286958850,3.03383,3296.2,3295.4,0.7758]
[1732286959138,3.03371,3296.3,3295.4,0.7758]
[1732286959340,3.03357,3296.5,3295.4,0.7758]
[1732286959649,0.3636506,3296.8,3295.4,0.7758]
[1732286959804,3.03341,3296.7,3295.4,0.7758]
[1732286960004,3.0,3296.9,3295.4,0.7758]
[1732286960227,3.03261,3297.5,3295.4,0.7758]
[1732286960228,3.0339,3296.1,3295.4,0.7758]
[1732286960505,3.03377,3296.3,3295.4,0.7758]
[1732286960708,3.03357,3296.5,3293.5,3.9174454]
[1732286960709,3.03444,3295.5,3293.7,0.8055]
[1732286960936,0.303348,3296.5,3293.9,0.8055]
[1732286960937,3.0,3296.3,3293.9,0.8055]
[1732286961142,3.03423,3295.8,3294.1,0.8055]
[1732286961377,0.303348,3296.5,3294.3,0.8055]
[1732286961577,3.03418,3295.8,3294.4,0.03034533]
[1732286961783,3.03417,3295.8,3294.5,0.7759]
[1732286961997,3.03424,3295.8,3294.5,0.80624533]
[1732286962272,3.0342,3295.8,3294.6,0.03034696]
[1732286962484,6.03342,3296.6,3294.7,0.8327]
[1732286962779,3.03353,3296.5,3294.8,0.86303998]
[1732286962960,3.03287,3297.2,3294.8,0.86303998]
[1732286963146,3.336337,3297.1,3294.8,0.86303998]
[1732286963351,3.03305,3297.1,3295.2,0.7958]
[1732286963551,3.03381,3296.2,3295.4,0.7958]
[1732286963864,3.03362,3296.4,3295.4,0.7958]
[1732286964066,3.03287,3297.2,3295.4,0.7958]
[1732286964377,3.03287,3297.2,3294.6,3.03033941]
[1732286964378,3.03351,3296.6,3295.6,0.8225]
[1732286964609,3.03354,3296.5,3295.6,0.8225]
[1732286964919,3.03388,3296.2,3295.6,0.8225]
[1732286965201,3.03391,3296.1,3295.6,0.8225]
[1732286965383,3.8311,3296.9,3295.6,0.8225]
[1732286965583,3.03391,3296.1,3295.6,0.8225]
[1732286965886,3.03401,3296.0,3295.6,0.8225]
[1732286966224,0.8017,3295.5,3294.2,0.7659]
[1732286966508,3.03509,3294.8,3294.2,0.7659]
[1732286966820,3.03498,3295.0,3294.2,0.7659]
[1732286967110,3.03463,3295.3,3294.2,0.7659]
[1732286967323,3.03425,3295.7,3294.4,0.829]
[1732286967467,3.03453,3295.4,3294.4,0.829]
[1732286967663,0.55,3295.3,3294.4,0.829]
[1732286968101,3.03487,3295.1,3294.4,0.829]
[1732286968407,0.55,3295.1,3294.4,0.829]
[1732286968625,3.03533,3294.6,3293.6,0.7579]
[1732286968770,0.55,3294.7,3293.6,0.7579]
[1732286968975,6.51662454,3295.0,3293.7,0.03035778]
[1732286969304,3.0349,3295.0,3293.8,0.8075]
[1732286969469,4.7358454,3295.7,3293.8,0.8075]
[1732286969668,0.55,3295.1,3293.8,0.8075]
[1732286969976,3.03453,3295.4,3293.8,0.8075]
[1732286969977,3.03536,3294.6,3293.8,0.8075]
[1732286970173,3.0356,3294.3,3293.8,0.8075]
[1732286970407,3.642706,3294.3,3293.8,0.8075]
[1732286970716,3.0356,3294.3,3293.8,0.8075]
[1732286971111,3.03565,3294.2,3293.8,0.8075]
[1732286971311,0.303565,3294.2,3293.8,0.8075]
[1732286971519,3.03538,3294.5,3293.8,0.8075]
[1732286971715,3.03493,3295.0,3293.9,0.0303573]
[1732286971899,0.39417445,3295.4,3293.8,0.8075]
[1732286972077,3.03495,3295.0,3293.8,0.8075]
[1732286972277,0.39174454,3295.6,3293.9,0.03035394]
[1732286972597,3.54728899,3295.5,3293.9,0.03035131]
[1732286972799,3.03481,3295.1,3293.1,0.7647]
[1732286972996,3.0348,3295.1,3293.3,0.7647]
[1732286973197,3.03499,3294.9,3293.3,0.7647]
[1732286973401,3.9174454,3294.7,3293.3,0.7647]
[1732286973617,3.03554,3294.4,3293.3,0.7647]
[1732286973786,3.03565,3294.2,3293.3,0.7647]
[1732286974174,3.03548,3294.4,3293.4,0.03036022]
[1732286974375,3.0357,3294.2,3293.3,0.7647]
[1732286974575,0.303554,3294.3,3293.3,0.7647]
[1732286974878,3.03573,3294.1,3293.3,0.7647]
[1732286975084,3.03564,3294.2,3293.3,0.7647]
[1732286975315,0.55,3294.5,3293.3,0.7647]
[1732286975475,3.03526,3294.6,3293.3,0.7647]
[1732286975476,0.55,3294.3,3293.3,0.7647]
[1732286975680,3.5856,3294.3,3293.3,0.7647]
[1732286976019,0.303499,3294.8,3293.4,0.03036197]
[1732286976177,3.0,3295.1,3293.3,0.7647]
[1732286976377,3.03574,3294.1,3293.3,0.7647]
[1732286976573,3.9174454,3294.7,3293.3,0.7647]
[1732286976915,3.0,3295.1,3293.5,0.8174]
[1732286977129,3.03533,3294.6,3293.5,0.8174]
[1732286977428,6.9522254,3295.2,3293.6,0.03035913]
[1732286977429,3.03496,3295.0,3293.6,0.03035913]
[1732286977582,3.03496,3295.0,3293.7,0.8174]
[1732286977776,0.51275899,3295.5,3293.7,0.8174]
[1732286977777,0.51275899,3295.5,3293.8,0.03035407]
[1732286977983,0.51275899,3295.5,3293.9,3.758]
[1732286978207,3.03471,3295.2,3293.9,0.758]
[1732286978390,3.641799,3295.1,3293.9,0.758]
[1732286978697,3.0348,3295.1,3293.9,0.758]
[1732286979024,3.9174454,3294.7,3293.9,0.758]
[1732286979328,3.9174454,3294.7,3292.2,0.7935]
[1732286979329,3.03561,3294.3,3292.2,0.7935]
[1732286979525,3.03578,3294.1,3292.4,0.7935]
[1732286979726,3.03578,3294.1,3292.6,0.7871]
[1732286979910,3.03582,3294.0,3292.8,0.7871]
[1732286980115,3.03558,3294.3,3292.8,0.7871]
[1732286980624,3.03558,3294.3,3293.0,0.8204]
[1732286981024,3.03537,3294.5,3293.1,0.03036246]
[1732286981228,3.03555,3294.3,3293.2,0.8204]
[1732286981434,3.03537,3294.5,3293.2,0.8204]
[1732286981731,3.03534,3294.6,3293.3,0.03036061]
[1732286982026,3.0,3295.1,3293.2,3.0]
[1732286982186,3.0,3295.1,3293.3,0.825657]
[1732286982388,3.0,3295.1,3293.3,0.7953]
[1732286982584,3.03544,3294.5,3293.3,0.7953]
[1732286982825,3.9174454,3294.7,3293.4,0.03036097]
[1732286982983,3.0,3295.0,3293.4,0.03036097]
[1732286982984,3.03492,3295.0,3293.5,0.7722]
[1732286983310,3.9174454,3295.2,3293.7,0.7722]
[1732286983514,3.03526,3294.6,3293.7,0.7722]
[1732286983741,3.9174454,3294.7,3293.7,0.7722]
[1732286983886,3.03546,3294.4,3293.7,0.7722]
[1732286984084,3.03548,3294.4,3293.7,0.7722]
[1732286984330,3.03571,3294.2,3293.7,0.7722]
[1732286984633,3.03541,3294.5,3293.7,0.7722]
[1732286984930,0.39174454,3294.6,3293.7,0.7722]
[1732286985223,3.42703454,3294.6,3293.7,0.7722]
[1732286985586,4.07339699,3294.5,3293.7,0.7722]
[1732286985783,1.03796699,3294.5,3293.7,0.7722]
[1732286985983,3.9174454,3294.2,3293.7,0.7722]
[1732286986225,3.03619,3293.6,3292.4,0.8228]
[1732286986529,3.643423,3293.6,3292.4,0.8228]
[1732286986829,3.03636,3293.5,3292.4,0.8228]
[1732286987035,3.03607,3293.8,3292.4,0.8228]
[1732286987741,3.03611,3293.7,3292.4,0.8228]
[1732286987949,3.643328,3293.7,3292.4,0.8228]
[1732286988103,3.03579,3294.1,3292.6,0.7592]
[1732286988300,3.03579,3294.1,3292.8,0.7592]
[1732286988602,3.0356,3294.3,3293.0,0.7746]
[1732286988805,3.03539,3294.5,3293.2,0.7746]
[1732286989001,6.9526554,3294.7,3293.2,0.7746]
[1732286989203,6.9526554,3294.7,3292.0,0.97300454]
[1732286989204,4.6894454,3295.2,3293.4,0.8295]
[1732286989441,0.380682,3295.0,3293.6,0.8295]
[1732286989603,3.3765582,3294.9,3293.7,0.8295]
[1732286989802,3.03501,3294.9,3293.7,0.8295]
[1732286990001,3.03524,3294.7,3293.7,0.8295]
[1732286990209,3.0354,3294.5,3293.7,0.8295]
[1732286990435,6.9526354,3294.7,3293.7,0.822727]
[1732286990710,0.55,3294.8,3293.7,0.822727]
[1732286990918,3.03588,3294.0,3293.7,0.822727]
[1732286991451,3.036,3293.8,3292.6,0.3026]
[1732286991623,3.0,3294.5,3292.6,0.3026]
[1732286991954,3.0358,3294.1,3292.6,0.3026]
[1732286992246,3.0357,3294.2,3292.7,0.03036426]
[1732286992423,3.339138,3294.3,3292.7,0.03036426]
[1732286992749,3.03491,3295.0,3292.7,0.03036426]
[1732286992750,3.9174454,3295.2,3292.7,0.03036426]
[1732286992952,3.03528,3294.6,3292.7,0.03036426]
[1732286993151,3.03471,3295.2,3292.7,0.03036426]
[1732286993152,3.03526,3294.7,3292.7,0.03036426]
[1732286993357,0.303526,3294.7,3292.9,0.3026]
[1732286993538,0.8245,3295.3,3292.8,0.7987]
[1732286993539,3.9174454,3293.9,3292.8,0.7987]
[1732286993714,3.03586,3294.0,3292.8,0.7987]
[1732286993909,4.7419454,3294.4,3292.8,0.7987]
[1732286993910,0.303586,3293.9,3292.8,0.7987]
[1732286994155,3.03614,3293.7,3292.8,0.7987]
[1732286994414,3.03593,3293.9,3292.8,0.7987]
[1732286994759,3.03608,3293.8,3292.8,0.7987]
[1732286994916,3.03585,3294.0,3292.8,0.7987]
[1732286994917,3.03589,3294.0,3292.8,0.7987]
[1732286995252,3.03568,3294.2,3292.9,0.8148]
[1732286995456,3.03574,3294.1,3292.9,0.8148]
[1732286995638,0.607142,3294.0,3292.9,0.8148]
[1732286995817,3.03588,3294.0,3292.9,0.8148]
[1732286996013,3.03596,3293.9,3292.9,0.8148]
[1732286996240,3.9174454,3294.4,3292.9,0.8148]
[1732286996241,3.55,3294.1,3292.9,0.8148]
[1732286996720,3.03635,3293.5,3292.9,0.8148]
[1732286997229,3.03663,3293.2,3292.9,0.8148]
[1732286998166,3.03666,3293.1,3292.9,0.8148]
[1732286998319,3.03654,3293.3,3292.9,0.8148]
[1732286998534,3.03674,3293.0,3291.4,0.03036902]
[1732286998872,3.03691,3292.9,3291.5,0.7611]
[1732286999170,3.03694,3292.8,3291.5,0.7611]
[1732286999478,3.03707,3292.7,3291.5,0.7611]
[1732286999776,3.03687,3292.9,3291.5,0.7611]
[1732286999930,3.03676,3293.0,3291.6,0.03037332]
[1732287000133,3.03685,3292.9,3291.7,0.8149]
[1732287000333,0.39174454,3293.3,3291.8,0.55]
[1732287000571,3.03635,3293.5,3292.1,0.7703]
[1732287000760,3.0369,3292.9,3292.2,0.7703]
[1732287000958,3.0367,3293.1,3292.2,0.7703]
[1732287001374,3.03689,3292.9,3292.2,0.7703]
[1732287001547,3.03686,3292.9,3292.2,0.7703]
[1732287001888,3.03708,3292.7,3292.2,0.7703]
[1732287002048,6.9174454,3293.4,3292.2,0.7703]
[1732287002236,6.9174454,3293.4,3290.0,0.0096]
[1732287002237,3.9174454,3292.4,3290.7,0.7559]
[1732287002433,3.9174454,3292.4,3290.8,0.03037997]
[1732287002746,3.03821,3291.5,3290.7,0.7559]
[1732287003136,3.03748,3292.2,3290.7,0.7559]
[1732287003339,3.03814,3291.5,3290.7,0.7559]
[1732287003834,3.03812,3291.5,3290.7,0.7559]
[1732287004264,3.03822,3291.4,3290.7,0.7559]
[1732287004673,0.303772,3291.9,3290.7,0.7559]
[1732287004886,3.03787,3291.8,3290.7,0.7559]
[1732287005049,3.0381,3291.6,3290.7,0.7559]
[1732287005252,3.39174454,3292.3,3290.7,0.7559]
[1732287005253,3.03767,3292.0,3290.7,0.7559]
[1732287005579,3.03829,3291.4,3290.7,0.7559]
[1732287005790,3.03809,3291.6,3290.7,0.7559]
[1732287006032,3.03788,3291.8,3290.7,0.7559]
[1732287006232,3.03801,3291.7,3290.7,0.7559]
[1732287006418,3.03839,3291.3,3290.7,0.7559]
[1732287006619,3.39174454,3292.3,3289.6,0.03038367]
[1732287006620,3.9174454,3291.4,3289.7,0.7641]
[1732287006925,3.03849,3291.1,3289.7,0.7641]
[1732287007118,3.03861,3291.0,3289.7,0.7641]
[1732287007439,3.9174454,3291.4,3289.7,0.7641]
[1732287007440,3.03858,3291.1,3289.7,0.7641]
[1732287007595,3.03858,3291.1,3289.9,0.7746]
[1732287007798,3.0383,3291.4,3290.0,0.03039178]
[1732287007998,3.0383,3291.4,3290.1,0.7746]
[1732287008719,3.03847,3291.2,3290.1,0.7746]
[1732287008936,0.303847,3291.1,3290.1,0.7746]
[1732287009095,3.03907,3290.5,3290.1,0.7746]
[1732287009295,3.0384,3291.2,3290.1,0.7746]
[1732287009523,3.39741,3291.1,3290.1,0.7746]
[1732287009732,3.03857,3291.1,3290.1,0.7746]
[1732287009934,3.03815,3291.5,3290.1,0.7746]
[1732287010142,0.75404455,3291.5,3290.1,0.7746]
[1732287010335,3.03821,3291.5,3290.1,0.7746]
[1732287010644,3.39174454,3291.8,3290.3,0.798]
[1732287010645,0.39174454,3291.8,3290.3,0.798]
[1732287010811,0.39174454,3291.8,3290.5,0.8025]
[1732287011009,3.03765,3292.1,3290.6,0.03038674]
[1732287011341,3.03785,3291.8,3290.7,0.8025]
[1732287011528,3.03795,3291.7,3290.7,0.8025]
[1732287011846,3.03794,3291.7,3290.7,0.8025]
[1732287012049,3.03859,3291.0,3289.5,0.03038785]
[1732287012348,0.303859,3290.9,3289.6,0.7675]
[1732287012518,3.03927,3290.3,3289.6,0.7675]
[1732287012718,3.03921,3290.4,3289.6,0.7675]
[1732287012920,3.03958,3290.0,3289.6,0.7675]
[1732287013120,0.303921,3290.3,3289.6,0.7675]
[1732287013321,3.03971,3289.8,3289.2,0.9461352]
[1732287013504,0.303971,3289.7,3289.2,0.1475352]
[1732287013712,0.55,3289.8,3289.2,0.1475352]
[1732287013909,3.03994,3289.6,3289.2,0.1475352]
[1732287014146,3.03987,3289.7,3289.2,0.1475352]
[1732287014147,0.607981,3289.5,3289.2,0.1475352]
[1732287014469,3.04016,3289.3,3289.2,0.1475352]
[1732287014809,3.04005,3289.5,3289.2,0.1475352]
[1732287015037,3.03979,3289.7,3289.2,0.1475352]
[1732287015350,4.03017,3289.7,3289.2,0.1475352]
[1732287015574,0.99035,3289.7,3289.2,0.1475352]
[1732287015712,3.04016,3289.3,3289.2,0.1475352]
[1732287015915,4.03014,3289.7,3289.2,0.1475352]
[1732287016122,3.04003,3289.5,3289.2,0.1475352]
[1732287016324,0.403014,3289.6,3289.2,0.1475352]
[1732287016660,3.04016,3289.3,3289.2,0.1475352]
[1732287016810,0.99035,3289.7,3289.2,0.1475352]
[1732287017012,3.03996,3289.6,3289.2,0.1475352]
[1732287017264,3.04016,3289.3,3289.2,0.1475352]
[1732287017464,3.344176,3289.3,3289.2,0.1475352]
[1732287018024,6.344176,3289.3,3289.2,0.1475352]
[1732287018324,0.7775,3288.6,3287.0,0.7907]
[1732287018689,3.04099,3288.4,3287.0,0.7907]
[1732287018970,3.04189,3287.5,3287.0,0.7907]
[1732287019122,3.04136,3288.0,3287.0,0.7907]
[1732287019322,3.04162,3287.8,3287.0,0.7907]
[1732287019526,3.55,3288.2,3287.0,0.7907]
[1732287019722,3.04164,3287.7,3287.0,0.7907]
[1732287019943,3.04136,3288.0,3287.0,0.7907]
[1732287020189,3.04109,3288.3,3287.1,0.03042072]
[1732287020666,0.347384,3288.3,3287.2,0.7625]
[1732287020895,3.04094,3288.5,3287.2,0.7625]
[1732287021088,3.04097,3288.5,3287.2,0.7625]
[1732287021300,3.04112,3288.3,3287.2,0.7625]
[1732287021464,3.04125,3288.2,3287.2,0.7625]
[1732287021665,3.0414,3288.0,3287.2,0.7625]
[1732287021990,3.0,3288.5,3287.2,0.7625]
[1732287021991,3.04121,3288.2,3287.2,0.7625]
[1732287022150,3.04129,3288.1,3287.2,0.7625]
[1732287022590,3.04125,3288.2,3287.2,0.7625]
[1732287022905,0.69174454,3288.4,3287.2,0.7625]
[1732287023187,3.04118,3288.2,3287.2,0.7625]
[1732287023516,3.04053,3288.9,3287.3,0.0304175]
[1732287023651,3.344206,3289.3,3287.4,0.7504]
[1732287023853,3.9174454,3289.6,3287.6,0.7504]
[1732287024057,0.39174454,3289.5,3287.6,0.7504]
[1732287024292,0.771,3289.0,3287.6,0.7504]
[1732287024681,3.04112,3288.3,3287.6,0.7504]
[1732287025195,0.771,3289.0,3287.6,0.7504]
[1732287025196,3.0,3288.8,3287.6,0.7504]
[1732287025352,3.04091,3288.5,3287.6,0.7504]
[1732287025558,0.55,3288.8,3287.6,0.7504]
[1732287025786,0.46884454,3288.9,3287.6,0.7504]
[1732287025992,0.42398445,3288.8,3287.6,0.7504]
[1732287026174,3.04119,3288.2,3287.6,0.7504]
[1732287026351,0.42398445,3288.8,3287.6,0.7504]
[1732287026560,3.04119,3288.2,3287.6,0.7504]
[1732287026791,3.0409,3288.5,3287.6,0.7504]
[1732287026995,3.04125,3288.2,3287.6,0.7504]
[1732287027350,0.42398445,3288.8,3287.6,0.7504]
[1732287027691,3.04091,3288.5,3287.6,0.7504]
[1732287028054,3.04133,3288.1,3287.6,0.7504]
[1732287028255,3.04153,3287.9,3286.7,0.7569]
[1732287028478,3.04145,3287.9,3286.7,0.7569]
[1732287028706,3.04169,3287.7,3286.7,0.7569]
[1732287028919,3.650004,3287.7,3286.7,0.7569]
[1732287029099,3.04148,3287.9,3286.7,0.7569]
[1732287029294,3.04105,3288.4,3286.8,0.83162247]
[1732287029508,0.771,3289.0,3286.8,0.83162247]
[1732287029695,3.04095,3288.5,3286.8,0.83162247]
[1732287029890,0.771,3289.0,3286.8,0.83162247]
[1732287030102,3.04105,3288.4,3286.8,0.83162247]
[1732287030433,3.04077,3288.7,3286.8,0.8012]
[1732287030586,3.04163,3287.8,3286.8,0.8012]
[1732287030781,3.04136,3288.0,3286.8,0.8012]
[1732287031088,0.304136,3287.9,3286.8,0.8012]
[1732287031291,3.04236,3287.0,3286.8,0.8012]
[1732287031514,3.04209,3287.3,3286.8,0.8012]
[1732287031733,0.304209,3287.2,3286.8,0.8012]
[1732287031933,3.04166,3287.7,3286.8,0.8012]
[1732287032088,3.04137,3288.0,3286.8,0.8012]
[1732287032295,0.8233,3288.2,3286.9,0.03042175]
[1732287032296,3.04125,3288.2,3286.9,0.03042175]
[1732287032527,3.04125,3288.2,3287.0,0.7649]
[1732287032684,3.041,3288.4,3287.0,0.7649]
[1732287032888,3.04123,3288.2,3287.0,0.7649]
[1732287033132,3.04143,3288.0,3287.0,0.7649]
[1732287033429,3.04092,3288.5,3287.1,0.03041946]
[1732287033625,0.8227,3288.7,3287.2,0.7648]
[1732287033833,3.04098,3288.5,3287.2,0.7648]
[1732287033989,3.04071,3288.7,3287.2,0.7648]
[1732287034193,3.04161,3287.8,3287.2,0.7648]
[1732287034419,3.9174454,3288.0,3286.0,0.03042299]
[1732287034646,3.04233,3287.0,3286.7,0.8112]
[1732287034791,3.04253,3286.8,3286.0,0.8112]
[1732287034997,3.346613,3286.9,3286.0,0.8112]
[1732287035195,0.55,3287.4,3286.0,0.8112]
[1732287035433,3.04262,3286.7,3286.0,0.8112]
[1732287035931,3.04246,3286.9,3286.0,0.8112]
[1732287036455,3.04228,3287.0,3286.0,0.8112]
[1732287036606,3.04263,3286.7,3286.0,0.8112]
[1732287036810,0.304263,3286.6,3286.0,0.8112]
[1732287037114,3.04231,3287.0,3286.0,0.8112]
[1732287037447,3.9174454,3286.5,3285.3,0.7568]
[1732287037618,0.55,3286.8,3285.3,0.7568]
[1732287037824,3.04256,3286.7,3285.3,0.7568]
[1732287038020,3.346473,3287.1,3286.0,0.8024]
[1732287038255,3.04239,3286.9,3286.0,0.8024]
[1732287038458,0.3346473,3287.0,3286.0,0.8024]
[1732287038617,3.04219,3287.1,3286.0,0.8024]
[1732287038818,3.04235,3287.0,3286.0,0.8024]
[1732287039055,0.55,3287.2,3286.0,0.8024]
[1732287039354,3.04191,3287.4,3286.0,0.8024]
[1732287039566,3.04218,3287.2,3286.0,0.8024]
[1732287039913,3.0424,3286.9,3286.0,0.8024]
[1732287040260,3.04221,3287.1,3286.0,0.8024]
[1732287040559,3.04253,3286.8,3286.0,0.8024]
[1732287040724,3.04228,3287.1,3286.0,0.8024]
[1732287040934,3.04208,3287.3,3286.0,0.8024]
[1732287041314,0.39174454,3287.9,3286.1,0.03042863]
[1732287041519,3.04157,3287.8,3286.1,0.03042863]
[1732287041759,3.04142,3288.0,3286.2,0.8265]
[1732287041917,3.04124,3288.2,3286.3,0.85692353]
[1732287042115,3.04133,3288.1,3286.3,0.85692353]
[1732287042337,3.04103,3288.4,3286.4,0.55]
[1732287042524,3.04103,3288.4,3286.3,0.85692353]
[1732287042525,4.255162,3288.9,3287.0,3.4075574]
[1732287042748,3.04068,3288.8,3287.1,0.85691594]
[1732287042915,0.5086662,3288.8,3287.1,0.8265]
[1732287043115,3.04062,3288.8,3287.1,0.8265]
[1732287043483,3.04164,3287.7,3287.1,0.8265]
[1732287043882,0.7996,3288.2,3287.1,0.8265]
[1732287044206,3.0416,3287.8,3287.1,0.8265]
[1732287044508,0.7996,3288.2,3287.1,0.8265]
[1732287044509,3.3458,3287.7,3287.1,0.8265]
[1732287044645,3.04164,3287.7,3287.1,0.8265]
[1732287044850,3.04139,3288.0,3287.1,0.8265]
[1732287045282,3.04159,3287.8,3287.1,0.8265]
[1732287045759,0.69727622,3288.4,3287.1,0.8265]
[1732287045955,3.04109,3288.3,3287.1,0.8265]
[1732287046165,3.04083,3288.6,3287.1,0.8265]
[1732287046372,3.04067,3288.8,3287.3,0.7894]
[1732287046557,1.214582,3288.9,3287.3,0.7894]
[1732287046558,3.04099,3288.4,3287.3,0.7894]
[1732287046772,1.214582,3288.9,3287.4,0.03041444]